bitfinex-derivatives/quotes_BTCF0:USTF0_20241116
["timestamp","ask_amount","ask_price","bid_price","bid_amount"]
[1731740064342,0.3608,91301.0,91298.0,0.05275415]
[1731740065052,0.00012604,91302.0,91298.0,0.05275415]
[1731740065449,0.00012604,91302.0,91299.0,0.3608]
[1731740066450,0.00012604,91302.0,91299.0,0.54563596]
[1731740066652,0.00012604,91302.0,91299.0,0.54711596]
[1731740067150,0.00012604,91302.0,91299.0,0.44352]
[1731740067650,0.0051,91311.0,91300.0,0.4608]
[1731740067851,0.0051,91316.0,91310.0,0.3608]
[1731740068045,0.3608,91324.0,91310.0,0.3659]
[1731740068654,0.00013927,91323.0,91310.0,0.3659]
[1731740071050,0.10359596,91319.0,91310.0,0.3659]
[1731740074651,0.3608,91313.0,91310.0,0.0051]
[1731740074846,0.0648,91312.0,91304.0,0.0051]
[1731740075050,0.10359596,91301.0,91300.0,0.1]
[1731740075444,0.46439596,91301.0,91300.0,0.1]
[1731740075950,0.54563596,91301.0,91293.0,0.0051]
[1731740076151,0.10359596,91294.0,91293.0,0.0051]
[1731740076349,0.10359596,91294.0,91290.0,9.62e-05]
[1731740076555,0.3608,91291.0,91290.0,9.62e-05]
[1731740080653,0.44204,91291.0,91290.0,9.62e-05]
[1731740082251,0.494061,91291.0,91290.0,9.62e-05]
[1731740089163,0.92629696,91291.0,91271.0,0.3608]
[1731740089457,0.10359596,91274.0,91271.0,0.3608]
[1731740090055,0.10359596,91274.0,91264.0,0.02191377]
[1731740090251,0.10359596,91267.0,91260.0,8.267e-05]
[1731740091355,0.10359596,91267.0,91260.0,0.05124527]
[1731740091870,0.3608,91263.0,91260.0,8.267e-05]
[1731740092754,0.0316,91262.0,91260.0,8.267e-05]
[1731740096853,0.3608,91263.0,91260.0,8.267e-05]
[1731740098762,0.01028657,91262.0,91260.0,8.267e-05]
[1731740098963,0.7216,91263.0,91260.0,8.267e-05]
[1731740098964,0.01028657,91261.0,91260.0,8.267e-05]
[1731740099468,0.01028642,91261.0,91260.0,8.267e-05]
[1731740099963,0.01024825,91261.0,91260.0,8.267e-05]
[1731740100867,0.7216,91263.0,91260.0,8.267e-05]
[1731740101060,0.01022369,91262.0,91260.0,8.267e-05]
[1731740101260,0.01022369,91261.0,91260.0,8.267e-05]
[1731740101568,0.7216,91263.0,91260.0,8.267e-05]
[1731740101865,0.01022581,91262.0,91260.0,8.267e-05]
[1731740102075,0.7216,91263.0,91260.0,8.267e-05]
[1731740102366,0.01022582,91262.0,91260.0,8.267e-05]
[1731740102567,0.01022582,91261.0,91260.0,8.267e-05]
[1731740102765,0.01026365,91261.0,91260.0,8.267e-05]
[1731740103373,0.7216,91263.0,91260.0,8.267e-05]
[1731740104562,0.01028841,91262.0,91260.0,8.267e-05]
[1731740104871,0.01028841,91261.0,91260.0,8.267e-05]
[1731740106370,0.7216,91263.0,91260.0,8.267e-05]
[1731740107568,0.3608,91261.0,91260.0,8.267e-05]
[1731740108171,0.10359596,91264.0,91260.0,8.267e-05]
[1731740108364,0.46439596,91264.0,91260.0,8.267e-05]
[1731740108571,0.10359596,91264.0,91260.0,8.267e-05]
[1731740109065,0.00012148,91266.0,91260.0,8.267e-05]
[1731740110968,0.00012148,91266.0,91262.0,0.3608]
[1731740111164,0.00012148,91266.0,91262.0,0.55706172]
[1731740111366,0.00012148,91266.0,91263.0,0.52498172]
[1731740111672,0.00012148,91266.0,91264.0,0.19626172]
[1731740111872,0.00012148,91266.0,91265.0,0.52528974]
[1731740112178,0.00012148,91266.0,91265.0,0.19656974]
[1731740112362,0.00012148,91266.0,91265.0,0.32872]
[1731740113095,0.36092148,91266.0,91262.0,0.00144]
[1731740113377,0.10359596,91263.0,91260.0,8.267e-05]
[1731740118079,0.16411802,91262.0,91260.0,8.267e-05]
[1731740118271,0.10359596,91263.0,91260.0,8.267e-05]
[1731740118467,0.26771398,91263.0,91260.0,8.267e-05]
[1731740119268,0.10359596,91263.0,91260.0,8.267e-05]
[1731740119473,0.16411802,91262.0,91260.0,8.267e-05]
[1731740120270,0.10359596,91263.0,91260.0,8.267e-05]
[1731740120271,0.16411802,91261.0,91260.0,8.267e-05]
[1731740120471,0.05326833,91261.0,91260.0,8.267e-05]
[1731740120667,0.05326833,91262.0,91260.0,8.267e-05]
[1731740120874,0.10359596,91263.0,91260.0,8.267e-05]
[1731740121081,0.05326801,91262.0,91260.0,8.267e-05]
[1731740122072,0.05326805,91261.0,91260.0,8.267e-05]
[1731740122282,0.05326805,91262.0,91260.0,8.267e-05]
[1731740122678,0.05326805,91261.0,91260.0,8.267e-05]
[1731740122981,0.25003455,91262.0,91260.0,8.267e-05]
[1731740123570,0.05326805,91261.0,91260.0,8.267e-05]
[1731740123778,0.05326805,91262.0,91260.0,8.267e-05]
[1731740125284,0.031,91261.0,91260.0,8.267e-05]
[1731740126379,0.19496848,91261.0,91260.0,8.267e-05]
[1731740127382,0.19495295,91261.0,91260.0,8.267e-05]
[1731740127686,0.55575295,91261.0,91260.0,8.267e-05]
[1731740128679,0.56587124,91261.0,91260.0,8.267e-05]
[1731740129083,0.40191829,91261.0,91260.0,8.267e-05]
[1731740129492,0.45518808,91261.0,91260.0,8.267e-05]
[1731740129883,0.40191829,91261.0,91260.0,8.267e-05]
[1731740130183,0.45518786,91261.0,91260.0,8.267e-05]
[1731740130576,0.5070915,91261.0,91260.0,8.267e-05]
[1731740130982,0.45382193,91261.0,91260.0,8.267e-05]
[1731740131283,0.50709189,91261.0,91260.0,8.267e-05]
[1731740132785,0.61068785,91261.0,91253.0,0.19659649]
[1731740132977,0.2675522,91254.0,91247.0,0.36228]
[1731740133179,0.17418183,91253.0,91247.0,0.3608]
[1731740133379,0.17418183,91252.0,91247.0,0.3608]
[1731740133593,0.01022559,91251.0,91247.0,0.3608]
[1731740133781,0.01022559,91250.0,91247.0,0.3608]
[1731740134091,0.01022559,91249.0,91248.0,0.19659649]
[1731740134290,0.01022559,91252.0,91248.0,0.19659649]
[1731740134487,0.01022559,91252.0,91247.0,0.3608]
[1731740134488,0.10359596,91253.0,91250.0,0.19696618]
[1731740134686,0.01056365,91252.0,91250.0,0.19696618]
[1731740134885,0.01056365,91251.0,91250.0,0.19696618]
[1731740135181,0.01056365,91251.0,91250.0,0.19695876]
[1731740135484,0.01056365,91251.0,91247.0,0.3608]
[1731740135686,0.0051,91257.0,91249.0,0.1969523]
[1731740135995,0.01027522,91256.0,91250.0,0.1969523]
[1731740136292,0.01027522,91255.0,91250.0,0.1969523]
[1731740136490,0.01027522,91254.0,91249.0,0.1969523]
[1731740136789,0.01027522,91253.0,91250.0,0.1969523]
[1731740137088,0.0051,91257.0,91248.0,0.34348427]
[1731740137397,0.01027137,91256.0,91253.0,0.19694425]
[1731740137586,0.01027137,91255.0,91253.0,0.19694425]
[1731740137781,0.3608,91261.0,91253.0,0.19694425]
[1731740137982,0.01019785,91260.0,91253.0,0.19694425]
[1731740138182,0.01019785,91259.0,91253.0,0.19694425]
[1731740138384,0.01019785,91258.0,91253.0,0.19694425]
[1731740138596,0.01019785,91257.0,91254.0,0.22924425]
[1731740138896,0.3608,91261.0,91255.0,0.19694425]
[1731740139088,0.01021967,91260.0,91255.0,0.19694425]
[1731740139397,0.3608,91261.0,91255.0,0.19694425]
[1731740139694,0.01021973,91260.0,91255.0,0.19694425]
[1731740140291,0.01021973,91260.0,91254.0,0.0323]
[1731740140793,0.01021973,91260.0,91254.0,0.3931]
[1731740140995,0.01021973,91259.0,91254.0,0.3931]
[1731740141187,0.01021973,91258.0,91254.0,0.3931]
[1731740141384,0.01021973,91257.0,91254.0,0.3931]
[1731740141589,0.0051,91263.0,91254.0,0.3931]
[1731740141590,0.16395624,91261.0,91254.0,0.59004425]
[1731740141790,0.01023836,91260.0,91254.0,0.59004425]
[1731740141997,0.01023836,91259.0,91254.0,0.59004425]
[1731740142196,0.01023836,91258.0,91257.0,0.19694425]
[1731740142593,0.01023836,91258.0,91254.0,0.3931]
[1731740142791,0.01023836,91257.0,91254.0,0.3931]
[1731740142998,0.01023836,91256.0,91254.0,0.3931]
[1731740143295,0.00012148,91266.0,91254.0,0.3931]
[1731740143296,0.01023836,91255.0,91254.0,0.65534427]
[1731740143488,0.01023836,91260.0,91254.0,0.3931]
[1731740143699,0.01023836,91259.0,91254.0,0.3931]
[1731740143995,0.01023836,91258.0,91254.0,0.3931]
[1731740144195,0.01023836,91257.0,91254.0,0.3931]
[1731740144394,0.16395624,91261.0,91254.0,0.3931]
[1731740144395,0.01023836,91256.0,91254.0,0.3931]
[1731740144596,0.01023836,91255.0,91254.0,0.3931]
[1731740144996,0.01023836,91255.0,91254.0,0.44473137]
[1731740146200,0.2675522,91261.0,91254.0,0.44473137]
[1731740146201,0.01026817,91260.0,91254.0,0.44473137]
[1731740146500,0.01026817,91259.0,91254.0,0.44473137]
[1731740146699,0.01026817,91258.0,91254.0,0.44473137]
[1731740146892,0.01026817,91257.0,91254.0,0.44473137]
[1731740147204,0.01026817,91256.0,91254.0,0.44473137]
[1731740147495,0.01026817,91255.0,91254.0,0.44473137]
[1731740147802,0.01026817,91260.0,91254.0,0.44473137]
[1731740147991,0.01026817,91260.0,91254.0,0.55787704]
[1731740147992,0.16395624,91258.0,91254.0,0.55787704]
[1731740148198,0.01026817,91257.0,91256.0,0.19707704]
[1731740148504,0.01026817,91259.0,91256.0,0.19707704]
[1731740149294,0.01039323,91258.0,91256.0,0.19707704]
[1731740149686,0.01039323,91257.0,91256.0,0.19707704]
[1731740149994,0.01039323,91257.0,91255.0,0.19707704]
[1731740150197,0.01039323,91256.0,91254.0,0.55787704]
[1731740150394,0.01039323,91255.0,91254.0,0.55787704]
[1731740150799,0.01039323,91257.0,91254.0,0.55787704]
[1731740151097,0.10359596,91261.0,91250.0,0.19707704]
[1731740151098,0.06366215,91256.0,91250.0,0.19707704]
[1731740151301,0.10359596,91251.0,91244.0,0.19707704]
[1731740151605,0.16395865,91249.0,91244.0,0.19707704]
[1731740151895,0.02726759,91248.0,91245.0,0.19707704]
[1731740152102,0.02726759,91248.0,91241.0,0.39437567]
[1731740152103,0.01039323,91247.0,91246.0,0.19707704]
[1731740152503,0.01039323,91247.0,91241.0,0.1321314]
[1731740152504,0.032,91250.0,91244.0,0.19704626]
[1731740152695,0.02741934,91249.0,91245.0,0.19704626]
[1731740153011,0.02741934,91248.0,91245.0,0.19704626]
[1731740153307,0.0105459,91247.0,91245.0,0.19704626]
[1731740153506,0.0105459,91246.0,91245.0,0.19704626]
[1731740153804,0.0105459,91246.0,91244.0,0.19704626]
[1731740154005,0.0105459,91245.0,91241.0,0.31313567]
[1731740154198,0.0105459,91244.0,91241.0,0.31313567]
[1731740154402,0.3928,91250.0,91240.0,0.26224427]
[1731740154403,0.0105459,91243.0,91240.0,0.26224427]
[1731740154602,0.0105459,91242.0,91239.0,0.08489454]
[1731740154903,0.0105459,91241.0,91240.0,0.19701826]
[1731740155107,0.0105459,91247.0,91240.0,0.19701826]
[1731740155307,0.0105459,91247.0,91238.0,0.19714387]
[1731740155308,0.16395865,91246.0,91238.0,0.19714387]
[1731740155510,0.02761591,91245.0,91238.0,0.19714387]
[1731740155701,0.0105459,91244.0,91238.0,0.2490097]
[1731740155897,0.10359596,91242.0,91238.0,0.2490097]
[1731740156098,0.0105459,91241.0,91238.0,0.2490097]
[1731740156414,0.0105459,91241.0,91238.0,0.05199144]
[1731740156702,0.0105459,91241.0,91238.0,0.00012561]
[1731740158921,0.06812955,91239.0,91238.0,0.00012561]
[1731740159224,0.07888222,91239.0,91238.0,0.00012561]
[1731740159920,0.06812955,91239.0,91238.0,0.00012561]
[1731740162926,0.06812955,91242.0,91238.0,0.00012561]
[1731740166116,0.01068227,91241.0,91238.0,0.00012561]
[1731740166324,0.1362591,91242.0,91238.0,0.00012561]
[1731740166624,0.01068139,91241.0,91238.0,0.00012561]
[1731740166823,0.1362591,91242.0,91238.0,0.00012561]
[1731740167024,0.01063144,91241.0,91238.0,0.00012561]
[1731740167335,0.01063144,91240.0,91238.0,0.00012561]
[1731740167625,0.01063144,91239.0,91238.0,0.00012561]
[1731740170920,0.1362591,91242.0,91238.0,0.00012561]
[1731740171125,0.01059072,91241.0,91238.0,0.00012561]
[1731740171431,0.01059072,91240.0,91238.0,0.00012561]
[1731740171930,0.06812955,91242.0,91238.0,0.00012561]
[1731740171931,0.01059072,91239.0,91238.0,0.00012561]
[1731740173118,0.1362591,91242.0,91238.0,0.00012561]
[1731740173428,0.01057911,91241.0,91238.0,0.00012561]
[1731740173623,0.01057911,91240.0,91238.0,0.00012561]
[1731740173823,0.1362591,91242.0,91238.0,0.00012561]
[1731740174025,0.01069276,91241.0,91238.0,0.00012561]
[1731740174215,0.1362591,91242.0,91238.0,0.00012561]
[1731740174421,0.01069379,91241.0,91238.0,0.00012561]
[1731740175629,0.02778284,91241.0,91238.0,0.00012561]
[1731740175933,0.05327967,91240.0,91238.0,0.00012561]
[1731740176231,0.08106251,91239.0,91238.0,0.00012561]
[1731740176728,0.22454934,91239.0,91238.0,0.00012561]
[1731740176930,0.27782901,91239.0,91238.0,0.00012561]
[1731740177128,0.27782901,91239.0,91238.0,1.669e-05]
[1731740177329,0.44186251,91239.0,91238.0,1.669e-05]
[1731740177735,0.58768985,91239.0,91238.0,1.669e-05]
[1731740177939,0.58768979,91239.0,91238.0,1.669e-05]
[1731740178537,0.63829468,91239.0,91238.0,1.669e-05]
[1731740178925,0.44186251,91239.0,91238.0,1.669e-05]
[1731740179736,0.44187012,91239.0,91238.0,1.669e-05]
[1731740184226,0.44187038,91239.0,91238.0,1.669e-05]
[1731740186338,0.63820425,91239.0,91238.0,1.669e-05]
[1731740186543,0.44187038,91239.0,91238.0,1.669e-05]
[1731740186732,0.53943239,91239.0,91238.0,1.669e-05]
[1731740186929,0.52234334,91239.0,91238.0,1.669e-05]
[1731740187134,0.52200716,91239.0,91238.0,1.669e-05]
[1731740187434,0.43928716,91239.0,91238.0,1.669e-05]
[1731740190238,0.37115761,91239.0,91238.0,1.669e-05]
[1731740190628,0.43928716,91239.0,91238.0,1.669e-05]
[1731740190832,0.42892955,91239.0,91238.0,1.669e-05]
[1731740191052,0.43920284,91239.0,91238.0,1.669e-05]
[1731740195141,0.42892955,91239.0,91238.0,1.669e-05]
[1731740195341,0.43924624,91239.0,91238.0,1.669e-05]
[1731740196648,0.07844624,91239.0,91238.0,1.669e-05]
[1731740197748,0.24206656,91239.0,91238.0,1.669e-05]
[1731740198448,0.07844624,91239.0,91238.0,1.669e-05]
[1731740198643,0.07844624,91239.0,91216.0,0.0051]
[1731740198644,0.1362591,91225.0,91216.0,0.0051]
[1731740198849,0.06812955,91217.0,91211.0,0.0317]
[1731740199147,0.06812955,91212.0,91211.0,0.0317]
[1731740199451,0.13095405,91216.0,91211.0,0.0317]
[1731740199950,0.14126041,91215.0,91211.0,0.0317]
[1731740200156,0.06812955,91212.0,91211.0,0.0317]
[1731740200658,0.0784475,91212.0,91211.0,0.0317]
[1731740200946,0.08876569,91212.0,91211.0,0.0317]
[1731740202048,0.02063614,91212.0,91211.0,0.0317]
[1731740203141,0.01031795,91212.0,91211.0,0.0317]
[1731740204344,0.0051,91222.0,91211.0,1.34252285]
[1731740204544,0.3608,91242.0,91221.0,0.42892955]
[1731740204746,0.3608,91242.0,91231.0,0.3608]
[1731740205048,0.3608,91242.0,91232.0,0.031]
[1731740205452,0.3608,91242.0,91233.0,0.27960389]
[1731740206061,0.16369792,91249.0,91233.0,0.27960389]
[1731740206355,0.16369792,91251.0,91236.0,0.19684389]
[1731740206548,0.10380652,91252.0,91236.0,0.19684389]
[1731740206752,0.10380652,91252.0,91241.0,0.3608]
[1731740206945,0.3608,91256.0,91242.0,0.0309]
[1731740207262,0.3608,91256.0,91242.0,0.22774389]
[1731740207552,0.3608,91256.0,91242.0,0.0309]
[1731740207758,0.3608,91256.0,91243.0,0.0332]
[1731740208358,0.3608,91256.0,91244.0,0.08272]
[1731740209057,0.00355,91258.0,91244.0,0.08272]
[1731740210649,0.00355,91258.0,91245.0,0.08272]
[1731740211353,0.36435,91258.0,91245.0,0.08272]
[1731740212061,0.00355,91258.0,91245.0,0.08272]
[1731740212448,0.00355,91258.0,91251.0,0.3608]
[1731740212651,0.00355,91258.0,91252.0,0.0308]
[1731740214361,0.00355,91258.0,91253.0,0.32876]
[1731740214554,0.00355,91258.0,91254.0,0.32876]
[1731740214752,0.00355,91258.0,91255.0,0.10389931]
[1731740214949,0.00355,91258.0,91256.0,0.08272]
[1731740215163,0.00355,91258.0,91256.0,0.71148]
[1731740215354,0.00355,91258.0,91257.0,0.32876]
[1731740215559,0.00012148,91266.0,91257.0,0.32876]
[1731740215747,0.00012148,91266.0,91265.0,0.3608]
[1731740217553,0.00012148,91266.0,91265.0,0.68952]
[1731740219055,0.0652,91288.0,91265.0,0.98952]
[1731740219359,0.0652,91288.0,91275.0,0.3608]
[1731740219663,0.0652,91288.0,91276.0,0.11736]
[1731740220159,7.775e-05,91284.0,91276.0,0.11736]
[1731740220861,7.775e-05,91284.0,91283.0,0.3608]
[1731740221651,7.775e-05,91284.0,91283.0,0.68944]
[1731740222661,7.775e-05,91284.0,91283.0,0.7744]
[1731740224752,7.775e-05,91284.0,91283.0,0.77436]
[1731740226170,7.775e-05,91284.0,91283.0,0.44572]
[1731740231461,7.775e-05,91284.0,91283.0,0.3608]
[1731740231669,7.775e-05,91284.0,91283.0,0.44572]
[1731740232964,7.775e-05,91284.0,91283.0,0.3608]
[1731740233164,7.775e-05,91284.0,91283.0,0.44572]
[1731740234769,7.775e-05,91284.0,91283.0,0.46762796]
[1731740235872,7.775e-05,91284.0,91283.0,0.44572]
[1731740242282,7.775e-05,91284.0,91275.0,0.4147258]
[1731740242468,0.06804312,91276.0,91275.0,0.4133258]
[1731740242668,0.06804312,91276.0,91275.0,0.4982458]
[1731740243275,0.06804312,91276.0,91275.0,0.4133258]
[1731740243467,0.06804312,91276.0,91275.0,0.0525258]
[1731740243667,0.16369792,91281.0,91273.0,0.08492]
[1731740243870,0.06804312,91276.0,91273.0,0.08492]
[1731740244778,0.06804312,91276.0,91267.0,0.19684389]
[1731740244974,0.06804312,91276.0,91268.0,0.08492]
[1731740245476,0.06804312,91276.0,91268.0,0.28176389]
[1731740245678,0.06804312,91276.0,91268.0,0.08492]
[1731740246467,0.06804312,91276.0,91268.0,0.28176389]
[1731740246873,0.06804312,91276.0,91268.0,0.08492]
[1731740247677,0.23174104,91276.0,91268.0,0.08492]
[1731740248476,0.06804312,91271.0,91268.0,0.08492]
[1731740249874,0.06804312,91271.0,91267.0,0.08336]
[1731740252280,0.06804312,91271.0,91266.0,0.05299297]
[1731740252487,0.06804312,91271.0,91265.0,0.08336]
[1731740252878,0.06804312,91266.0,91265.0,0.08336]
[1731740254186,0.06804312,91266.0,91261.0,0.19684389]
[1731740254377,0.0649,91265.0,91258.0,0.19684389]
[1731740254582,0.06804312,91261.0,91258.0,0.19684389]
[1731740255182,0.06804312,91261.0,91257.0,0.0016433]
[1731740255476,0.06804312,91261.0,91257.0,0.05384668]
[1731740255673,0.06804312,91261.0,91257.0,0.0016433]
[1731740255874,0.06804312,91260.0,91257.0,0.0016433]
[1731740256286,0.06804312,91261.0,91257.0,0.0016433]
[1731740256482,0.06804312,91260.0,91257.0,0.0016433]
[1731740256981,0.3608,91263.0,91257.0,0.0016433]
[1731740256982,0.10378125,91258.0,91257.0,0.0016433]
[1731740263885,0.43254125,91258.0,91255.0,9.279e-05]
[1731740264090,0.10378125,91250.0,91249.0,0.0051]
[1731740264284,0.46458125,91250.0,91244.0,0.0051]
[1731740264490,0.46458125,91250.0,91238.0,0.0051]
[1731740264491,0.10378125,91239.0,91238.0,0.0051]
[1731740264686,0.10378125,91239.0,91229.0,0.0051]
[1731740264883,0.0607,91238.0,91228.0,0.0834]
[1731740265085,0.10378125,91231.0,91228.0,0.08352167]
[1731740265290,0.10378125,91231.0,91228.0,0.00012167]
[1731740266199,0.16448125,91238.0,91228.0,0.00012167]
[1731740266893,0.3608,91242.0,91228.0,0.00012167]
[1731740267491,0.10378125,91246.0,91230.0,0.3608]
[1731740267791,0.10378125,91246.0,91231.0,0.0304]
[1731740274009,0.10378125,91232.0,91229.0,0.0051]
[1731740274211,0.10378125,91239.0,91228.0,0.08352167]
[1731740274510,0.10378125,91239.0,91228.0,0.00012167]
[1731740274711,0.3608,91245.0,91228.0,0.00012167]
[1731740274712,0.10378125,91231.0,91228.0,0.00012167]
[1731740275011,0.0611,91230.0,91228.0,0.00012167]
[1731740280610,0.031,91230.0,91228.0,0.00012167]
[1731740281705,0.031,91230.0,91221.0,0.26092167]
[1731740282508,0.00012185,91238.0,91221.0,0.26092167]
[1731740282716,0.00012185,91238.0,91235.0,0.00011902]
[1731740287710,0.00012185,91238.0,91237.0,0.55764389]
[1731740287915,0.00012185,91238.0,91237.0,0.3608]
[1731740288719,0.00012185,91238.0,91237.0,0.62321714]
[1731740289426,0.00012185,91238.0,91237.0,0.3608]
[1731740289610,0.00012185,91238.0,91237.0,0.62322612]
[1731740289923,0.00012185,91238.0,91237.0,0.3608]
[1731740290416,0.00012185,91238.0,91237.0,1.00999867]
[1731740290619,0.00012185,91238.0,91237.0,0.68122686]
[1731740291414,0.0051,91250.0,91237.0,1.01002686]
[1731740291620,0.0051,91257.0,91249.0,0.3608]
[1731740291810,0.031,91261.0,91251.0,0.19676602]
[1731740292014,0.031,91261.0,91252.0,0.19676602]
[1731740292219,0.031,91261.0,91250.0,0.1486]
[1731740292220,0.031,91261.0,91251.0,0.19676602]
[1731740292527,8.855e-05,91255.0,91251.0,0.19676602]
[1731740292822,8.855e-05,91255.0,91254.0,0.19676602]
[1731740293118,8.855e-05,91255.0,91253.0,0.19676602]
[1731740293323,8.855e-05,91255.0,91254.0,0.19676602]
[1731740294225,8.855e-05,91255.0,91253.0,0.19676602]
[1731740294409,8.855e-05,91255.0,91252.0,0.19676602]
[1731740294725,8.855e-05,91255.0,91251.0,0.19676602]
[1731740294911,8.855e-05,91255.0,91253.0,0.19676602]
[1731740296218,8.855e-05,91255.0,91252.0,0.19676602]
[1731740297230,8.855e-05,91255.0,91250.0,0.33067974]
[1731740298012,8.855e-05,91255.0,91250.0,0.19676602]
[1731740298212,0.3608,91252.0,91248.0,0.083]
[1731740298431,0.0316,91251.0,91248.0,0.083]
[1731740298621,0.0316,91251.0,91245.0,0.13464648]
[1731740299124,0.0316,91251.0,91245.0,0.083]
[1731740304832,0.01055491,91250.0,91245.0,0.083]
[1731740305030,0.0316,91251.0,91245.0,0.083]
[1731740306134,0.0316,91251.0,91243.0,0.083]
[1731740306331,0.0316,91251.0,91242.0,0.07295175]
[1731740306527,0.0316,91251.0,91243.0,0.083]
[1731740307025,0.0106369,91250.0,91243.0,0.083]
[1731740307362,0.01063874,91249.0,91244.0,0.3608]
[1731740307524,8.855e-05,91255.0,91246.0,0.19676602]
[1731740307830,8.855e-05,91255.0,91253.0,0.3608]
[1731740308523,0.0707698,91265.0,91253.0,0.3608]
[1731740309120,0.01056239,91264.0,91253.0,0.3608]
[1731740309325,0.01056239,91263.0,91253.0,0.3608]
[1731740309526,0.01068936,91262.0,91253.0,0.3608]
[1731740309728,0.00012697,91262.0,91253.0,0.3608]
[1731740310630,0.00012697,91262.0,91254.0,0.08252]
[1731740310830,0.00012697,91262.0,91254.0,0.27928602]
[1731740311131,0.00012697,91262.0,91255.0,0.19676602]
[1731740311637,0.00012697,91262.0,91256.0,0.19676602]
[1731740312029,0.00012697,91262.0,91255.0,0.19676602]
[1731740312330,0.00012697,91262.0,91256.0,0.19676602]
[1731740313541,0.01061432,91261.0,91260.0,0.19676602]
[1731740313733,0.01061432,91261.0,91259.0,0.19676602]
[1731740313932,0.00012697,91262.0,91259.0,0.19676602]
[1731740314133,0.01069352,91261.0,91260.0,0.19676602]
[1731740315036,0.01069352,91261.0,91255.0,0.26235534]
[1731740315236,0.01069352,91260.0,91256.0,0.26235534]
[1731740315537,0.01069352,91259.0,91256.0,0.26235534]
[1731740315737,0.01069352,91258.0,91256.0,0.26235534]
[1731740315938,0.01069352,91257.0,91256.0,0.26235534]
[1731740316134,0.01069352,91257.0,91254.0,0.16634128]
[1731740316337,0.01069352,91256.0,91254.0,0.16634128]
[1731740316539,0.00012697,91262.0,91254.0,0.16634128]
[1731740316737,0.01059015,91261.0,91259.0,0.26240289]
[1731740316941,0.01059015,91260.0,91258.0,0.26240289]
[1731740317239,0.01063636,91259.0,91254.0,0.16634128]
[1731740317439,0.01063636,91258.0,91254.0,0.16634128]
[1731740317636,0.01063636,91257.0,91254.0,0.16634128]
[1731740317941,0.01063634,91256.0,91254.0,0.16634128]
[1731740318138,0.01063634,91255.0,91254.0,0.16634128]
[1731740318337,0.00012697,91262.0,91254.0,0.16634128]
[1731740318540,0.0106312,91261.0,91259.0,0.26248279]
[1731740318742,0.00012697,91262.0,91260.0,0.26248279]
[1731740318936,0.00012697,91262.0,91261.0,0.3608]
[1731740319146,0.00012697,91262.0,91261.0,0.62328279]
[1731740319351,0.00012697,91262.0,91261.0,0.3608]
[1731740320147,0.00012697,91262.0,91261.0,0.3912]
[1731740321249,0.00012697,91262.0,91261.0,0.4238]
[1731740323039,9.7e-07,91262.0,91261.0,0.75252]
[1731740323343,9.7e-07,91262.0,91261.0,0.83504]
[1731740325747,9.7e-07,91262.0,91261.0,0.4238]
[1731740325952,9.7e-07,91262.0,91261.0,0.47368]
[1731740326543,9.7e-07,91262.0,91261.0,0.44328]
[1731740327954,9.7e-07,91262.0,91261.0,0.66173537]
[1731740328256,9.7e-07,91262.0,91261.0,0.44328]
[1731740333547,9.7e-07,91262.0,91261.0,0.08248]
[1731740335748,9.7e-07,91262.0,91261.0,0.27902324]
[1731740335954,0.01097308,91262.0,91261.0,0.08248]
[1731740336654,9.7e-07,91262.0,91261.0,0.08248]
[1731740337156,0.01097592,91262.0,91261.0,0.27902324]
[1731740337371,0.01097592,91262.0,91261.0,0.08248]
[1731740338043,0.01099975,91262.0,91261.0,0.08248]
[1731740338246,0.01099975,91262.0,91260.0,0.55878324]
[1731740338247,9.7e-07,91262.0,91260.0,0.36224]
[1731740338445,9.7e-07,91262.0,91260.0,0.3608]
[1731740340156,9.7e-07,91262.0,91260.0,0.622872]
[1731740342651,9.7e-07,91262.0,91261.0,0.262072]
[1731740343153,0.01081848,91262.0,91261.0,0.262072]
[1731740343951,0.01081848,91262.0,91260.0,0.3608]
[1731740344157,0.01081751,91261.0,91260.0,0.3608]
[1731740345059,0.01081751,91261.0,91260.0,0.44224]
[1731740345257,0.01081363,91261.0,91260.0,0.3608]
[1731740345555,0.01081363,91261.0,91260.0,0.44224]
[1731740346060,0.01081363,91261.0,91260.0,0.70479407]
[1731740346447,0.01081363,91261.0,91260.0,0.44224]
[1731740346951,0.01082269,91261.0,91260.0,0.44224]
[1731740349260,0.01075582,91261.0,91260.0,0.44224]
[1731740350267,0.01074069,91261.0,91260.0,0.44224]
[1731740350469,9.7e-07,91262.0,91260.0,0.70480728]
[1731740350761,9.7e-07,91262.0,91260.0,0.44224]
[1731740350951,9.7e-07,91262.0,91260.0,0.63917172]
[1731740353560,9.7e-07,91262.0,91260.0,0.44224]
[1731740353761,0.01071488,91261.0,91260.0,0.44224]
[1731740354062,9.7e-07,91262.0,91260.0,0.70480728]
[1731740354255,0.01050231,91261.0,91260.0,0.70480728]
[1731740355072,0.01050231,91261.0,91260.0,0.44224]
[1731740357467,0.0103913,91261.0,91260.0,0.44224]
[1731740359162,0.0103913,91261.0,91260.0,0.77018418]
[1731740359666,0.0103913,91261.0,91260.0,0.44224]
[1731740360257,0.0103913,91261.0,91260.0,0.77018418]
[1731740361074,0.0103913,91261.0,91260.0,1.08865002]
[1731740361756,0.0103913,91261.0,91260.0,0.77018418]
[1731740361956,0.0103913,91261.0,91260.0,0.44224]
[1731740362664,0.0103913,91261.0,91260.0,0.08144]
[1731740362854,0.0103913,91261.0,91260.0,0.44224]
[1731740364964,0.0103913,91261.0,91260.0,0.76220472]
[1731740365167,9.7e-07,91262.0,91260.0,0.76220472]
[1731740365365,9.7e-07,91262.0,91261.0,0.32856648]
[1731740365668,9.7e-07,91262.0,91260.0,0.77080648]
[1731740365871,0.01016515,91261.0,91260.0,0.44224]
[1731740366773,0.01013614,91261.0,91260.0,0.44224]
[1731740366962,0.01011718,91261.0,91260.0,0.44224]
[1731740369468,9.7e-07,91262.0,91260.0,0.44224]
[1731740369668,0.01012596,91261.0,91260.0,0.44224]
[1731740370072,9.7e-07,91262.0,91260.0,0.44224]
[1731740372977,9.7e-07,91262.0,91261.0,0.26287692]
[1731740374474,9.7e-07,91262.0,91260.0,0.36228]
[1731740374677,0.16421645,91261.0,91260.0,0.3608]
[1731740374894,9.7e-07,91262.0,91260.0,0.3608]
[1731740375073,9.7e-07,91262.0,91260.0,0.55797215]
[1731740375566,0.42888133,91261.0,91259.0,0.19715174]
[1731740375771,0.05326331,91260.0,91257.0,0.19715174]
[1731740376171,0.16414484,91258.0,91256.0,0.19715174]
[1731740376377,0.06808133,91257.0,91256.0,0.19715174]
[1731740377272,0.06808133,91257.0,91255.0,0.27859174]
[1731740378271,0.06808133,91257.0,91255.0,0.19715174]
[1731740379483,0.11894722,91257.0,91255.0,0.19715174]
[1731740380284,0.11894722,91257.0,91253.0,0.19715174]
[1731740380475,0.24970511,91256.0,91245.0,0.06808133]
[1731740380678,0.3608,91259.0,91247.0,0.19715174]
[1731740380679,0.16403797,91254.0,91247.0,0.19715174]
[1731740380875,0.16403797,91255.0,91249.0,0.19715174]